Cogmind - Beta 14 @@@ ROGUE MODE // 2024.11.26 @ 15:46:56 Player: MarKhan Result: Destroyed by S-27 Virus with Autogun Performance ------------- Evolutions (4) 2000 Regions Visited (8) 1600 Robots Destroyed (0) 0 Value Destroyed (0) 0 Prototype IDs (0) 0 Alien Tech Used (0) 0 Bonus (1825) 1825 TOTAL SCORE: 5425 Bonus ------- Pacifist 1325 Entered DSFs 500 Cogmind --------- Core Integrity 0/850 Matter 153/300 Energy 99/100 System Corruption 0% Temperature Cool (0) Movement Core (50) Location -6/Factory Parts ------- > --- POWER (1) -------- (None) > --- PROPULSION (2) --- (None) > --- UTILITY (2) ------ (None) > --- WEAPON (10) ------ (None) > --- INVENTORY (5) ---- (None) Peak State ------------ None Favorites ----------- Power None Propulsion None Utility None Weapon None Build | -11 -10 -9 -8 -7 -7 -6 -6 -6 ------- Run | Yrd Mat Mat Mat Fac DSF Fac Was Fac Slots Evolved 8 | . . 2 2 2 . 2 . . Power . | . . . . . . . . . Propulsion . | . . . . . . . . . Utility . | . . . . . . . . . Weapon 8 | . . 2 2 2 . 2 . . Parts Attached . | . . . . . . . . . Power . | . . . . . . . . . Engine . | . . . . . . . . . Core . | . . . . . . . . . Reactor . | . . . . . . . . . Propulsion . | . . . . . . . . . Treads . | . . . . . . . . . Leg . | . . . . . . . . . Wheel . | . . . . . . . . . Hover . | . . . . . . . . . Flight . | . . . . . . . . . Utility . | . . . . . . . . . Device . | . . . . . . . . . Storage . | . . . . . . . . . Processor . | . . . . . . . . . Hackware . | . . . . . . . . . Protection . | . . . . . . . . . Artifact . | . . . . . . . . . Weapon . | . . . . . . . . . Energy Gun . | . . . . . . . . . Energy Cannon . | . . . . . . . . . Ballistic Gun . | . . . . . . . . . Ballistic Cannon . | . . . . . . . . . Launcher . | . . . . . . . . . Special Weapon . | . . . . . . . . . Impact Weapon . | . . . . . . . . . Slashing Weapon . | . . . . . . . . . Piercing Weapon . | . . . . . . . . . Special Melee Weapon . | . . . . . . . . . Unidentified Prototypes . | . . . . . . . . . Parts Lost . | . . . . . . . . . Power . | . . . . . . . . . Propulsion . | . . . . . . . . . Utility . | . . . . . . . . . Weapon . | . . . . . . . . . Highest Loss Streak . | . . . . . . . . . To Critical Strikes . | . . . . . . . . . Average Slot Usage (%) . | . . . . . . . . . Peak Build Rating . | . . . . . . . . . Average Rating . | . . . . . . . . . On Entrance . | . . . . . . . . . Naked Turns 497 | . 36 35 32 13 44 16 33 288 Heaviest Build . | . . . . . . . . . Greatest Support 3 | 3 3 3 3 3 3 3 3 3 Greatest Overweight (x) . | . . . . . . . . . Average Overweight (x) . | . . . . . . . . . Largest Inventory Capacity 5 | 5 5 5 5 5 5 5 5 5 Average Capacity 5 | 5 5 5 5 5 5 5 5 5 Most Carried . | . . . . . . . . . Average Carried . | . . . . . . . . . Final Capacity 5 | 5 5 5 5 5 5 5 5 5 Final Carried . | . . . . . . . . . Class Distribution -------------------- 100% | Mutant Dominant Class ---------------- Mutant | -10/Materials Mutant | -9/Materials Mutant | -8/Materials Mutant | -7/Factory Mutant | -7/DSF Mutant | -6/Factory Mutant | -6/Waste Mutant | -6/Factory Resources | -11 -10 -9 -8 -7 -7 -6 -6 -6 ----------- Run | Yrd Mat Mat Mat Fac DSF Fac Was Fac Matter Collected . | . . . . . . . . . Remotely . | . . . . . . . . . Salvage Created . | . . . . . . . . . Parts . | . . . . . . . . . Haulers Intercepted . | . . . . . . . . . Recyclers Shooed . | . . . . . . . . . Parts Field Recycled . | . . . . . . . . . Retrieved Matter . | . . . . . . . . . Parts Self-Destructed . | . . . . . . . . . Prevented . | . . . . . . . . . Kills | -11 -10 -9 -8 -7 -7 -6 -6 -6 ------- Run | Yrd Mat Mat Mat Fac DSF Fac Was Fac Combat Hostiles Destroyed . | . . . . . . . . . Classes Destroyed . | . . . . . . . . . Best Kill Streak . | . . . . . . . . . Combat Bots Only . | . . . . . . . . . Max Kills in Single Turn . | . . . . . . . . . Gunslinging . | . . . . . . . . . Exploded . | . . . . . . . . . Melee . | . . . . . . . . . Uniques/NPCs Destroyed . | . . . . . . . . . Combat | -11 -10 -9 -8 -7 -7 -6 -6 -6 -------- Run | Yrd Mat Mat Mat Fac DSF Fac Was Fac Hostile Shots Fired 112 | . 2 3 12 . 6 . 2 87 Missed 52 | . . 2 4 . 2 . 1 43 Damage Taken 1151 | . 25 11 58 . 203 . 53 801 Core 1151 | . 25 11 58 . 203 . 53 801 Absorbed by Shields . | . . . . . . . . . Core Remaining (%) 89 | 100 90 97 89 . 71 . . . Volleys Fired . | . . . . . . . . . Largest . | . . . . . . . . . Hottest . | . . . . . . . . . Shots Fired . | . . . . . . . . . Gun . | . . . . . . . . . Cannon . | . . . . . . . . . Launcher . | . . . . . . . . . Special . | . . . . . . . . . Kinetic . | . . . . . . . . . Thermal . | . . . . . . . . . Explosive . | . . . . . . . . . Electromagnetic . | . . . . . . . . . Robot Hit Streak . | . . . . . . . . . Robot Miss Streak . | . . . . . . . . . Penetration Max . | . . . . . . . . . Secondary Targets . | . . . . . . . . . Shots Hit Robots . | . . . . . . . . . Core Hits 4 | . . . . . . . . 4 Critical Kills . | . . . . . . . . . Critical Parts Destroyed . | . . . . . . . . . Critical Strikes . | . . . . . . . . . Melee Attacks . | . . . . . . . . . Impact . | . . . . . . . . . Slashing . | . . . . . . . . . Piercing . | . . . . . . . . . Sneak Attacks . | . . . . . . . . . Combat Hostiles . | . . . . . . . . . Follow-up Attacks . | . . . . . . . . . Damage Inflicted 134 | . . . . . . . . 134 Guns . | . . . . . . . . . Cannons . | . . . . . . . . . Explosions 86 | . . . . . . . . 86 Melee . | . . . . . . . . . Ramming 48 | . . . . . . . . 48 Kinetic . | . . . . . . . . . Thermal . | . . . . . . . . . Explosive 86 | . . . . . . . . 86 Electromagnetic . | . . . . . . . . . Impact . | . . . . . . . . . Slashing . | . . . . . . . . . Piercing . | . . . . . . . . . Highest Corruption 1 | . 1 . . . . . . . Average Corruption 1 | . 1 . . . . . . . Corruption Purged . | . . . . . . . . . Corruption Blocked . | . . . . . . . . . Overload Shots . | . . . . . . . . . Overflow Damage 8 | . . . . . . . . 8 Projectiles . | . . . . . . . . . Explosions 8 | . . . . . . . . 8 Melee . | . . . . . . . . . Knockbacks . | . . . . . . . . . Impact . | . . . . . . . . . Kinetic . | . . . . . . . . . Secondary . | . . . . . . . . . Self-Inflicted Damage 102 | . . . . . . . . 102 Shots 1 | . . . . . . . . 1 Rammed 14 | . . . . . . . . 14 Targets Rammed 14 | . . . . . . . . 14 Kicked . | . . . . . . . . . Crushed . | . . . . . . . . . Highest Temperature . | . . . . . . . . . Average Temperature . | . . . . . . . . . Received Heat Transfer 75 | . 15 6 . . . . . 54 Siege Activations . | . . . . . . . . . Robots Corrupted . | . . . . . . . . . Combat Hostiles . | . . . . . . . . . Parts Fried . | . . . . . . . . . Impact Corruptions . | . . . . . . . . . Robots Melted . | . . . . . . . . . Combat Hostiles . | . . . . . . . . . Parts Melted . | . . . . . . . . . Heat Transferred . | . . . . . . . . . Parts Sabotaged . | . . . . . . . . . Parts Stolen . | . . . . . . . . . Parts Stripped . | . . . . . . . . . Power Chain Reactions 1 | . . . . . . . . 1 Alert | -11 -10 -9 -8 -7 -7 -6 -6 -6 ------- Run | Yrd Mat Mat Mat Fac DSF Fac Was Fac Peak Influence 451 | . 15 35 14 6 19 9 3 451 Initial 14 | . . 5 14 6 4 9 3 2 Average 84 | . 9 10 14 6 10 9 3 141 Maximum Alert Level 2 | . . . . . . . . 2 Low Security (%) 82 | 100 100 100 100 100 100 100 100 69 Level 1 15 | . . . . . . . . 27 Level 2 1 | . . . . . . . . 3 Level 3 . | . . . . . . . . . Level 4 . | . . . . . . . . . Level 5 . | . . . . . . . . . High Security . | . . . . . . . . . Max Security . | . . . . . . . . . Squads Dispatched 3 | . . . . . . . . 3 Investigation 2 | . . . . . . . . 2 Extermination . | . . . . . . . . . Reinforcement 1 | . . . . . . . . 1 Assault . | . . . . . . . . . Garrison . | . . . . . . . . . Intercept . | . . . . . . . . . Searches Triggered . | . . . . . . . . . Construction Impeded . | . . . . . . . . . Haulers Reinforced . | . . . . . . . . . Active Scanning Responses . | . . . . . . . . . Cargo Convoy Interrupts . | . . . . . . . . . Stealth | -11 -10 -9 -8 -7 -7 -6 -6 -6 --------- Run | Yrd Mat Mat Mat Fac DSF Fac Was Fac Distress Signals 2 | . . 1 1 . . . . . Communications Jammed . | . . . . . . . . . Distress Signals . | . . . . . . . . . Times Spotted 45 | . 2 2 4 . 2 . 6 29 Peak Tracking Total 11 | . 2 3 4 . 1 . 6 11 Tactical Retreats 9 | . . 1 . . 1 . . 7 Traps | -11 -10 -9 -8 -7 -7 -6 -6 -6 ------- Run | Yrd Mat Mat Mat Fac DSF Fac Was Fac Traps Triggered 3 | . 1 . . . . 1 . 1 Indirectly . | . . . . . . . . . Trap Hack Attempts . | . . . . . . . . . Triggered . | . . . . . . . . . Disarmed . | . . . . . . . . . Reprogrammed . | . . . . . . . . . Reused . | . . . . . . . . . Traps Extracted . | . . . . . . . . . Installed . | . . . . . . . . . Triggered . | . . . . . . . . . Machines | -11 -10 -9 -8 -7 -7 -6 -6 -6 ---------- Run | Yrd Mat Mat Mat Fac DSF Fac Was Fac Machines Disabled . | . . . . . . . . . Max in Single Turn . | . . . . . . . . . Machines Repaired . | . . . . . . . . . Machines Dismantled . | . . . . . . . . . Machines Sabotaged . | . . . . . . . . . Overloaded Fab Kills 2 | . . . . . . . . 2 Hacking | -11 -10 -9 -8 -7 -7 -6 -6 -6 --------- Run | Yrd Mat Mat Mat Fac DSF Fac Was Fac Machines Accessed 7 | . . . 1 1 . 1 . 4 Terminals 6 | . . . 1 1 . 1 . 3 Fabricators 1 | . . . . . . . . 1 Repair Stations . | . . . . . . . . . Recycling Units . | . . . . . . . . . Scanalyzers . | . . . . . . . . . Garrison Access . | . . . . . . . . . Total Hacks 16 | . . . 5 1 . 3 . 7 Successful 6 | . . . . 1 . . . 5 Failed 10 | . . . 5 . . 3 . 2 Catastrophic 2 | . . . 2 . . . . . Database Lockouts . | . . . . . . . . . Manual 11 | . . . 5 . . . . 6 Terminals 15 | . . . 5 1 . 3 . 6 Fabricators 1 | . . . . . . . . 1 Repair Stations . | . . . . . . . . . Recycling Units . | . . . . . . . . . Scanalyzers . | . . . . . . . . . Garrison Access . | . . . . . . . . . Terminal Hacks 2 | . . . . 1 . . . 1 Open DSF 2 | . . . . 1 . . . 1 Fabricator Hacks . | . . . . . . . . . Repair Station Hacks . | . . . . . . . . . Recycling Unit Hacks . | . . . . . . . . . Scanalyzer . | . . . . . . . . . Garrison Access Hacks . | . . . . . . . . . Unauthorized Hacks 4 | . . . . . . . . 4 Terminals 3 | . . . . . . . . 3 Track 1 | . . . . . . . . 1 Botnet 2 | . . . . . . . . 2 Fabricators 1 | . . . . . . . . 1 Overload 1 | . . . . . . . . 1 Repair Stations . | . . . . . . . . . Recycling Units . | . . . . . . . . . Scanalyzers . | . . . . . . . . . Garrison Access . | . . . . . . . . . Data Cores Recovered . | . . . . . . . . . Used . | . . . . . . . . . Hacking Detections 6 | . . . 1 1 . 1 . 3 Full Trace Events 2 | . . . 1 . . . . 1 Feedback Events . | . . . . . . . . . Feedback Blocked . | . . . . . . . . . Robot Schematics Acquired . | . . . . . . . . . Robots Built . | . . . . . . . . . Authchips . | . . . . . . . . . Time . | . . . . . . . . . Total Robot Build Rating . | . . . . . . . . . Part Schematics Acquired . | . . . . . . . . . Parts Built . | . . . . . . . . . Authchips . | . . . . . . . . . Time . | . . . . . . . . . Total Part Build Rating . | . . . . . . . . . Parts Repaired . | . . . . . . . . . Time . | . . . . . . . . . Parts Recycled . | . . . . . . . . . Recycled Matter . | . . . . . . . . . Retrieved Matter . | . . . . . . . . . Retrieved Components . | . . . . . . . . . Parts Scanalyzed . | . . . . . . . . . Part Schematics Acquired . | . . . . . . . . . Parts Damaged . | . . . . . . . . . Bothacking | -11 -10 -9 -8 -7 -7 -6 -6 -6 ------------ Run | Yrd Mat Mat Mat Fac DSF Fac Was Fac Used RIF Installer . | . . . . . . . . . Robots Hacked . | . . . . . . . . . Non-combat . | . . . . . . . . . Combat . | . . . . . . . . . Robot Hacks Applied . | . . . . . . . . . Relay Couplers Released . | . . . . . . . . . Fabnet Peak Effective % . | . . . . . . . . . Robots Rewired . | . . . . . . . . . Allies Hacked . | . . . . . . . . . Hacks Repelled . | . . . . . . . . . Allies | -11 -10 -9 -8 -7 -7 -6 -6 -6 -------- Run | Yrd Mat Mat Mat Fac DSF Fac Was Fac Total Allies . | . . . . . . . . . Largest Group . | . . . . . . . . . Highest-Rated Group . | . . . . . . . . . Highest-Rated Ally . | . . . . . . . . . Total Orders . | . . . . . . . . . Ally Attacks . | . . . . . . . . . Total Damage . | . . . . . . . . . Kills . | . . . . . . . . . Allies Corrupted . | . . . . . . . . . Allies Melted . | . . . . . . . . . Intel | -11 -10 -9 -8 -7 -7 -6 -6 -6 ------- Run | Yrd Mat Mat Mat Fac DSF Fac Was Fac Robot Analysis Total . | . . . . . . . . . Derelict Logs Recovered . | . . . . . . . . . Drone Launches . | . . . . . . . . . Drone Recoveries . | . . . . . . . . . Exploration | -11 -10 -9 -8 -7 -7 -6 -6 -6 ------------- Run | Yrd Mat Mat Mat Fac DSF Fac Was Fac Turns Passed 506 | 9 36 35 32 13 44 16 33 288 Spaces Moved 971 | 18 72 70 64 25 88 32 65 537 Core 971 | 18 72 70 64 25 88 32 65 537 Treads . | . . . . . . . . . Legs . | . . . . . . . . . Wheels . | . . . . . . . . . Hover . | . . . . . . . . . Flight . | . . . . . . . . . Fastest Speed 50 | 50 50 50 50 50 50 50 50 50 Average Speed 50 | 50 50 50 50 50 50 50 50 50 Slowest Speed 50 | 50 50 50 50 50 50 50 50 50 Overloaded Moves . | . . . . . . . . . Propulsion Burnouts . | . . . . . . . . . Robots Hopped . | . . . . . . . . . Cave-ins Triggered . | . . . . . . . . . Exploration Rate (%) 25 | 4 21 14 11 1 89 1 70 14 Regions Visited 8 Branch Regions . Pre-discovered Areas . | . . . . . . . . . Known Exits Taken 1 | . . . . 1 . . . . Unknown Exits Taken 4 | 1 1 1 1 . . . . . Scrap Searched . | . . . . . . . . . Spaces Dug . | . . . . . . . . . Terrain Destroyed 16 | . . . . . . . . 16 Melee . | . . . . . . . . . Projectile . | . . . . . . . . . AOE 16 | . . . . . . . . 16 Terrain Rammed . | . . . . . . . . . Walls Destroyed . | . . . . . . . . . Machines Disabled . | . . . . . . . . . Actions | -11 -10 -9 -8 -7 -7 -6 -6 -6 --------- Run | Yrd Mat Mat Mat Fac DSF Fac Was Fac Total 984 | 17 71 69 63 25 87 32 64 556 Wait 5 | . . . . . . . . 5 Move 965 | 17 71 69 63 25 87 32 64 537 Hop . | . . . . . . . . . Pick Up . | . . . . . . . . . Fast Attach . | . . . . . . . . . Attach . | . . . . . . . . . Detach . | . . . . . . . . . Swap . | . . . . . . . . . Drop . | . . . . . . . . . Fire . | . . . . . . . . . Melee . | . . . . . . . . . Ram 14 | . . . . . . . . 14 Kick . | . . . . . . . . . Crush . | . . . . . . . . . Escape Stasis . | . . . . . . . . . Rewire . | . . . . . . . . . Trap . | . . . . . . . . . Miscellaneous . | . . . . . . . . . Route ------- -11/Scrapyard -10/Materials -9/Materials (discovered 2 exits: *Mat / [*Min]) -8/Materials -7/Factory -7/DSF -6/Factory -6/Waste -6/Factory History --------- Turn | Location | Event 5 | -11/Scrapyard | Discovered new exit (range 12) 10 | -11/Scrapyard | Entered Materials 39 | -10/Materials | Discovered new exit (range 14) 46 | -10/Materials | Entered another Materials area 46 | -9/Materials | Evolved 2 slots: Weapon x2 77 | -9/Materials | Discovered new exit (range 10) 81 | -9/Materials | Discovered new exit (range 15) 81 | -9/Materials | Entered another Materials area 81 | -8/Materials | Evolved 2 slots: Weapon x2 109 | -8/Materials | Discovered new exit (range 10) 113 | -8/Materials | Entered Factory 113 | -7/Factory | Evolved 2 slots: Weapon x2 126 | -7/Factory | Identified exit to DSF 126 | -7/Factory | Entered DSF 149 | -7/DSF | Additional patrols routed to DSF 162 | -7/DSF | Discovered new exit (range 15) 170 | -7/DSF | Entered Factory 170 | -6/Factory | Evolved 2 slots: Weapon x2 186 | -6/Factory | Sucked down chute 186 | -6/Factory | Entered Waste 190 | -6/Waste | Spotted C-40 Crusher 199 | -6/Waste | Spotted C-40 Crusher 205 | -6/Waste | Spotted C-40 Crusher 207 | -6/Waste | Spotted C-40 Crusher 208 | -6/Waste | Spotted C-40 Crusher 210 | -6/Waste | Spotted C-40 Crusher 211 | -6/Waste | Discovered new exit (range 16) 219 | -6/Waste | Entered Factory 305 | -6/Factory | Build established: Mutant 379 | -6/Factory | Core integrity fell below 50% 486 | -6/Factory | Core integrity fell below 20% 507 | -6/Factory | Destroyed by S-27 Virus with Autogun Last Messages --------------- >>Trojan(Track) Trojan loaded successfully. Testing... Tracking enabled and active. 00456_ ALERT: Suspicious activity at Terminal F017. Dispatching Investigation squad. 00456_ O-24 Administrator: "IFF HANDSHAKE FAILED. SECURING TERMINAL." 00472_ Connecting with Terminal... >>Trojan(Botnet) Trojan loaded successfully. Testing... Terminal linked with 1 system. Awaiting botnet instructions. 00489_ U-05 Engineer builds a Door. 00491_ ALERT: Hostiles spotted, dispatching reinforcements to Terminal F004. 00503_ C-30 ARC bursts open, deploying its payload. 00503_ S-27 Virus unfolds itself. Map ----- +----------------------------------------------------+ | ????????????????????????????????????????? ????" ?? | | ????????????????????????????????????????? ???""??? | | ????????????????????????????????????????# #? ""??? | | ????????????????????????????????????????# #? "???? | | ????????????????????????????????????????# # ????? | | ???????????????????????????????????????## # ?????? | | ???????????????????????????????????????? +??????? | | ????????????????????????????????????????# #??????? | | ???????????????????????###????????????### ###????? | | ???????????????????????# ########## #????? | | ???????????????????????# o " ###### | | ????????????????????? "T | | ???????????????????????# ###### | | ???????????????????????# ########## #????? | | ????????????????????????? #?????????## ##????? | | ????????????????????????? #??????????# #?????? | | ?????????????????????????% +??????????# #?????? | | ????????????????????????# #??????????# #?????? | | ????????????????????????# #??????????# #?????? | | ????????????????????????# #??????????# #?????? | | ????????????????????????# #??????????# #?????? | | ????????????????????????# s #??????????# #?????? | | ????????????????????????# s#??????????# #?????? | | ??????????????###########s #??????????# #?????? | | ??????????????# # #??????????# #?????? | | ????????????????? """"" #@ #??????????# #?????? | | ????????????????? """"" + #??????????# #?????? | | ????????????????? """ # #??????????# ####### | | ???????????????! # #??????????# | | ??????????????# # #???#########+######## | | ??????????????# [ # #???# | | ??????????????# [ # #???# """ | | ??????????????########### #???# "T" | | ????????????????????????# s #???# " " | | ????????????????????????# #???# | | ????????????????????????# s #???# """"""""" | | ????????????????????????# #???# | | ??????????????########### ###################### | | ???????????#### s s | | ???????? | | ???????? | | ???????? | | ??????????##### | | ???????????? "" * #############+########## | | ?????????????"" #??????????????????????? | | ?????????????F #??????????????????????? | | ????????????""" #??????????????????????? | | ???????????? "" #??????????????????????? | | ?????????????## #??????????????????????? | | ??????????????# #??????????????????????? | +----------------------------------------------------+ Best States ------------- Heat Dissipation 37 Energy Generation 5 Energy Capacity 100 Matter Stores 153 Matter Capacity 300 Sight Range 16 Terrain Scan Density 10 Evasion (%) 50 Item Schematics ----------------- None Robot Schematics ------------------ None Fabricated ------------ Nothing Alien Tech Used ----------------- None Achievements -------------- None Challenges ------------ None Game ------ Seed BiocellCargoDriver Manual? 0 Play Time 00:09:35 Cumulative 145.0 hours Start 2024.11.26 @ 15:40:55 End 2024.11.26 @ 15:46:56 Sessions 1 Manual Loads 0 Difficulty Rogue Special Mode None Game No. 143 Rogue 143 Adventurer 0 Explorer 0 Win Type - Total 3 Types 3/0/0/0/0/0/0/0/0 Lore% 58 Gallery% 58 Achievement% 55 Wizard Run 0 Options --------- Layout 1 ASCII 0 Keyboard 1 Movement Arrows Keybinds 0 Fullscreen 0 Font 20/Smallcaps Map View 50x35 Zoom Use 0% Tactical HUD 1 Map Filters NONE Filters NONE Steam 1 RUN: c7b69bf4-b599-4c8e-97e0-579cffd70d4f